[Event "Titled Tuesday Blitz March 22 Early 2022"]
[White "Petrosyan, Manuel"]
[Black "Aldokhin, Ivan"]
[WhiteFideId "13300857"]
[BlackFideId "24115720"]
[WhiteElo "2592"]
[BlackElo "2231"]
[Result "1-0"]
[Round "03"]
[TimeControl "180+1"]
[Date "2022.03.22"]
[WhiteClock "0:01:40"]
[BlackClock "0:00:51"]

1. c4 {[%clk 0:03:00]}  Nf6 {[%clk 0:03:00]} 2. Nc3 {[%clk 0:03:00]}  d6 {[%clk 0:02:57]} 3. g3 {[%clk 0:02:56]}  g6 {[%clk 0:02:58]} 4. Bg2 {[%clk 0:02:56]}  Bg7 {[%clk 0:02:58]} 5. d4 {[%clk 0:02:57]}  O-O {[%clk 0:02:59]} 6. Nf3 {[%clk 0:02:57]}  Nc6 {[%clk 0:02:59]} 7. O-O {[%clk 0:02:56]}  Bf5 {[%clk 0:02:59]} 8. Bg5 {[%clk 0:02:55]}  Ne4 {[%clk 0:02:58]} 9. Nxe4 {[%clk 0:02:54]}  Bxe4 {[%clk 0:02:58]} 10. d5 {[%clk 0:02:55]}  Bxf3 {[%clk 0:02:53]} 11. exf3 {[%clk 0:02:56]}  Ne5 {[%clk 0:02:50]} 12. Qe2 {[%clk 0:02:52]}  h6 {[%clk 0:02:48]} 13. Be3 {[%clk 0:02:49]}  c5 {[%clk 0:02:39]} 14. dxc6 {[%clk 0:02:40]}  Nxc6 {[%clk 0:02:39]} 15. Rad1 {[%clk 0:02:39]}  Qa5 {[%clk 0:02:30]} 16. b3 {[%clk 0:02:37]}  Nb4 {[%clk 0:02:21]} 17. Rd2 {[%clk 0:02:37]}  a6 {[%clk 0:02:10]} 18. f4 {[%clk 0:02:32]}  Rab8 {[%clk 0:01:46]} 19. a4 {[%clk 0:02:11]}  b5 {[%clk 0:01:40]} 20. axb5 {[%clk 0:02:10]}  axb5 {[%clk 0:01:36]} 21. c5 {[%clk 0:02:11]}  dxc5 {[%clk 0:01:24]} 22. Bxc5 {[%clk 0:02:12]}  Rfe8 {[%clk 0:01:23]} 23. Rd7 {[%clk 0:02:05]}  e6 {[%clk 0:01:15]} 24. Qd2 {[%clk 0:01:41]}  Bf8 {[%clk 0:01:02]} 25. Ra7 {[%clk 0:01:40]}  Qd8 {[%clk 0:00:51]} 26. Qxb4 {[%clk 0:01:40]} 1-0


[Site "https://www.chess.com"]

[Event "Titled Tuesday Blitz March 22 Early 2022"]
[White "Piliczewski, Bogusz"]
[Black "Koridze, Lile"]
[WhiteFideId "1104144"]
[BlackFideId "13612514"]
[WhiteElo "1896"]
[BlackElo "1999"]
[Result "0-1"]
[Round "03"]
[TimeControl "180+1"]
[Date "2022.03.22"]
[WhiteClock "0:00:07"]
[BlackClock "0:00:10"]

1. d4 {[%clk 0:03:00]}  Nf6 {[%clk 0:02:58]} 2. Nf3 {[%clk 0:03:00]}  d5 {[%clk 0:02:58]} 3. Bf4 {[%clk 0:03:01]}  c5 {[%clk 0:02:58]} 4. c3 {[%clk 0:03:00]}  Nc6 {[%clk 0:02:56]} 5. e3 {[%clk 0:02:59]}  e6 {[%clk 0:02:57]} 6. h3 {[%clk 0:02:59]}  h6 {[%clk 0:02:55]} 7. Bd3 {[%clk 0:02:59]}  Bd6 {[%clk 0:02:55]} 8. Ne5 {[%clk 0:02:57]}  O-O {[%clk 0:02:55]} 9. Nd2 {[%clk 0:02:56]}  Qc7 {[%clk 0:02:55]} 10. Nxc6 {[%clk 0:02:53]}  Bxf4 {[%clk 0:02:50]} 11. exf4 {[%clk 0:02:38]}  bxc6 {[%clk 0:02:43]} 12. g3 {[%clk 0:02:24]}  cxd4 {[%clk 0:02:41]} 13. cxd4 {[%clk 0:02:23]}  c5 {[%clk 0:02:41]} 14. dxc5 {[%clk 0:02:19]}  Qxc5 {[%clk 0:02:41]} 15. O-O {[%clk 0:02:19]}  Bb7 {[%clk 0:02:40]} 16. Rc1 {[%clk 0:02:14]}  Qb6 {[%clk 0:02:40]} 17. Qb3 {[%clk 0:02:14]}  Rfc8 {[%clk 0:02:34]} 18. Nf3 {[%clk 0:02:00]}  Qxb3 {[%clk 0:01:57]} 19. axb3 {[%clk 0:02:00]}  Rab8 {[%clk 0:01:57]} 20. Ne5 {[%clk 0:01:57]}  Ba8 {[%clk 0:01:47]} 21. Ra1 {[%clk 0:01:42]}  Rxb3 {[%clk 0:01:44]} 22. Rxa7 {[%clk 0:01:41]}  Rxb2 {[%clk 0:01:42]} 23. Rxf7 {[%clk 0:01:38]}  Rb7 {[%clk 0:01:26]} 24. Rxb7 {[%clk 0:01:36]}  Bxb7 {[%clk 0:01:26]} 25. Rb1 {[%clk 0:01:33]}  Bc6 {[%clk 0:01:20]} 26. Rc1 {[%clk 0:01:28]}  Bb7 {[%clk 0:01:18]} 27. Rxc8+ {[%clk 0:01:26]}  Bxc8 {[%clk 0:01:19]} 28. g4 {[%clk 0:01:24]}  Kf8 {[%clk 0:01:16]} 29. Kg2 {[%clk 0:01:17]}  Ke7 {[%clk 0:01:14]} 30. Kf3 {[%clk 0:01:17]}  Bb7 {[%clk 0:01:13]} 31. Ke3 {[%clk 0:01:16]}  Kd6 {[%clk 0:01:11]} 32. Kd4 {[%clk 0:01:15]}  Ne8 {[%clk 0:01:04]} 33. Nf7+ {[%clk 0:01:10]}  Ke7 {[%clk 0:01:04]} 34. Ne5 {[%clk 0:01:09]}  Kd6 {[%clk 0:01:04]} 35. Bg6 {[%clk 0:01:05]}  Nc7 {[%clk 0:01:00]} 36. Nf7+ {[%clk 0:01:03]}  Ke7 {[%clk 0:01:00]} 37. Ke5 {[%clk 0:01:02]}  Bc6 {[%clk 0:00:53]} 38. Nd6 {[%clk 0:00:59]}  Bd7 {[%clk 0:00:45]} 39. Nb7 {[%clk 0:00:58]}  Nb5 {[%clk 0:00:43]} 40. Nc5 {[%clk 0:00:57]}  Bc8 {[%clk 0:00:42]} 41. Bd3 {[%clk 0:00:56]}  Nc3 {[%clk 0:00:39]} 42. h4 {[%clk 0:00:53]}  Nd1 {[%clk 0:00:38]} 43. f3 {[%clk 0:00:48]}  Nb2 {[%clk 0:00:17]} 44. Bb5 {[%clk 0:00:47]}  Nd1 {[%clk 0:00:15]} 45. Nb3 {[%clk 0:00:45]}  Nc3 {[%clk 0:00:14]} 46. Bc6 {[%clk 0:00:43]}  Ne2 {[%clk 0:00:11]} 47. Nd4 {[%clk 0:00:43]}  Nxd4 {[%clk 0:00:11]} 48. Kxd4 {[%clk 0:00:43]}  Kd6 {[%clk 0:00:12]} 49. Be8 {[%clk 0:00:42]}  Ba6 {[%clk 0:00:12]} 50. g5 {[%clk 0:00:39]}  Be2 {[%clk 0:00:11]} 51. gxh6 {[%clk 0:00:37]}  gxh6 {[%clk 0:00:10]} 52. Bh5 {[%clk 0:00:36]}  Ba6 {[%clk 0:00:10]} 53. Bg4 {[%clk 0:00:36]}  Be2 {[%clk 0:00:09]} 54. Bh5 {[%clk 0:00:35]}  Ba6 {[%clk 0:00:09]} 55. Bg4 {[%clk 0:00:32]}  Be2 {[%clk 0:00:09]} 56. Ke3 {[%clk 0:00:31]}  Ba6 {[%clk 0:00:09]} 57. f5 {[%clk 0:00:29]}  exf5 {[%clk 0:00:09]} 58. Bxf5 {[%clk 0:00:29]}  Ke5 {[%clk 0:00:09]} 59. Bc2 {[%clk 0:00:28]}  d4+ {[%clk 0:00:10]} 60. Kf2 {[%clk 0:00:25]}  Kf4 {[%clk 0:00:09]} 61. Bd1 {[%clk 0:00:24]}  d3 {[%clk 0:00:08]} 62. h5 {[%clk 0:00:23]}  Bb7 {[%clk 0:00:07]} 63. Ke1 {[%clk 0:00:20]}  Bxf3 {[%clk 0:00:05]} 64. Ba4 {[%clk 0:00:17]}  Bxh5 {[%clk 0:00:05]} 65. Kd2 {[%clk 0:00:17]}  Bg6 {[%clk 0:00:05]} 66. Bd7 {[%clk 0:00:16]}  h5 {[%clk 0:00:05]} 67. Ke1 {[%clk 0:00:15]}  Ke3 {[%clk 0:00:05]} 68. Ba4 {[%clk 0:00:15]}  h4 {[%clk 0:00:04]} 69. Kf1 {[%clk 0:00:15]}  h3 {[%clk 0:00:04]} 70. Kg1 {[%clk 0:00:14]}  Bf5 {[%clk 0:00:04]} 71. Kh2 {[%clk 0:00:14]}  Ke2 {[%clk 0:00:04]} 72. Kg3 {[%clk 0:00:14]}  d2 {[%clk 0:00:03]} 73. Kf4 {[%clk 0:00:12]}  Bc8 {[%clk 0:00:03]} 74. Bb5+ {[%clk 0:00:10]}  Ke1 {[%clk 0:00:04]} 75. Ba4 {[%clk 0:00:10]}  d1=Q {[%clk 0:00:04]} 76. Bxd1 {[%clk 0:00:09]}  Kxd1 {[%clk 0:00:05]} 77. Kg3 {[%clk 0:00:09]}  Ke1 {[%clk 0:00:05]} 78. Kh2 {[%clk 0:00:09]}  Kf2 {[%clk 0:00:06]} 79. Kh1 {[%clk 0:00:09]}  Kg3 {[%clk 0:00:06]} 80. Kg1 {[%clk 0:00:09]}  h2+ {[%clk 0:00:07]} 81. Kf1 {[%clk 0:00:08]}  h1=Q+ {[%clk 0:00:06]} 82. Ke2 {[%clk 0:00:08]}  Qf3+ {[%clk 0:00:07]} 83. Kd2 {[%clk 0:00:08]}  Kf2 {[%clk 0:00:08]} 84. Kc2 {[%clk 0:00:07]}  Ke2 {[%clk 0:00:08]} 85. Kb2 {[%clk 0:00:07]}  Kd2 {[%clk 0:00:09]} 86. Ka2 {[%clk 0:00:07]}  Kc2 {[%clk 0:00:09]} 87. Ka1 {[%clk 0:00:07]}  Qa3# {[%clk 0:00:10]} 0-1


[Site "https://www.chess.com"]

[Event "Titled Tuesday Blitz March 22 Early 2022"]
[White "Rodrigue-Lemieux, Shawn"]
[Black "Martin Duque, Jesus"]
[WhiteFideId "2620049"]
[BlackFideId "2208954"]
[WhiteElo "1763"]
[BlackElo "2243"]
[Result "1-0"]
[Round "03"]
[TimeControl "180+1"]
[Date "2022.03.22"]
[WhiteClock "0:00:05"]
[BlackClock "0:00:02"]

1. c4 {[%clk 0:03:00]}  b6 {[%clk 0:02:59]} 2. e4 {[%clk 0:03:00]}  Bb7 {[%clk 0:02:58]} 3. Nc3 {[%clk 0:03:01]}  c5 {[%clk 0:02:58]} 4. g3 {[%clk 0:03:01]}  g6 {[%clk 0:02:58]} 5. Bg2 {[%clk 0:03:02]}  Bg7 {[%clk 0:02:58]} 6. Nge2 {[%clk 0:03:03]}  Nc6 {[%clk 0:02:58]} 7. O-O {[%clk 0:03:03]}  e6 {[%clk 0:02:58]} 8. d3 {[%clk 0:03:03]}  d6 {[%clk 0:02:58]} 9. Be3 {[%clk 0:03:03]}  Nd4 {[%clk 0:02:58]} 10. Qd2 {[%clk 0:03:01]}  Qd7 {[%clk 0:02:57]} 11. f4 {[%clk 0:03:02]}  Ne7 {[%clk 0:02:57]} 12. Rae1 {[%clk 0:03:02]}  O-O {[%clk 0:02:57]} 13. b4 {[%clk 0:03:01]}  f5 {[%clk 0:02:57]} 14. a3 {[%clk 0:03:00]}  Rae8 {[%clk 0:02:55]} 15. h3 {[%clk 0:02:57]}  Kh8 {[%clk 0:02:44]} 16. Kh2 {[%clk 0:02:57]}  Nec6 {[%clk 0:02:35]} 17. b5 {[%clk 0:02:45]}  Na5 {[%clk 0:02:32]} 18. Bg1 {[%clk 0:02:40]}  Nab3 {[%clk 0:02:29]} 19. Qa2 {[%clk 0:02:36]}  a6 {[%clk 0:02:17]} 20. bxa6 {[%clk 0:02:25]}  Bxa6 {[%clk 0:02:17]} 21. Nxd4 {[%clk 0:02:22]}  Nxd4 {[%clk 0:02:11]} 22. Ne2 {[%clk 0:02:22]}  fxe4 {[%clk 0:02:06]} 23. Nxd4 {[%clk 0:02:21]}  cxd4 {[%clk 0:02:02]} 24. Bxe4 {[%clk 0:02:20]}  d5 {[%clk 0:01:55]} 25. cxd5 {[%clk 0:02:21]}  exd5 {[%clk 0:01:55]} 26. Qxd5 {[%clk 0:02:19]}  Qxd5 {[%clk 0:01:53]} 27. Bxd5 {[%clk 0:02:20]}  Bxd3 {[%clk 0:01:53]} 28. Rxe8 {[%clk 0:02:19]}  Rxe8 {[%clk 0:01:54]} 29. Rd1 {[%clk 0:02:18]}  Re2+ {[%clk 0:01:54]} 30. Kh1 {[%clk 0:02:18]}  Bf5 {[%clk 0:01:00]} 31. Rxd4 {[%clk 0:02:06]}  Bxh3 {[%clk 0:00:55]} 32. Rb4 {[%clk 0:02:01]}  h5 {[%clk 0:00:52]} 33. Rxb6 {[%clk 0:01:56]}  Bf5 {[%clk 0:00:43]} 34. Bf3 {[%clk 0:01:48]}  Re1 {[%clk 0:00:43]} 35. Rb8+ {[%clk 0:01:41]}  Kh7 {[%clk 0:00:43]} 36. Kg2 {[%clk 0:01:42]}  Ra1 {[%clk 0:00:41]} 37. Rb7 {[%clk 0:01:27]}  Ra2+ {[%clk 0:00:40]} 38. Bf2 {[%clk 0:01:13]}  Kh6 {[%clk 0:00:40]} 39. Re7 {[%clk 0:00:41]}  Rxa3 {[%clk 0:00:35]} 40. Be4 {[%clk 0:00:40]}  Bg4 {[%clk 0:00:20]} 41. Rc7 {[%clk 0:00:28]}  Ra6 {[%clk 0:00:19]} 42. Bd3 {[%clk 0:00:20]}  Rd6 {[%clk 0:00:19]} 43. Be4 {[%clk 0:00:19]}  Re6 {[%clk 0:00:19]} 44. Bf3 {[%clk 0:00:19]}  Bxf3+ {[%clk 0:00:19]} 45. Kxf3 {[%clk 0:00:20]}  Ra6 {[%clk 0:00:19]} 46. Be3 {[%clk 0:00:19]}  Bf6 {[%clk 0:00:11]} 47. Rf7 {[%clk 0:00:17]}  Rc6 {[%clk 0:00:11]} 48. g4 {[%clk 0:00:16]}  hxg4+ {[%clk 0:00:11]} 49. Kxg4 {[%clk 0:00:17]}  Bd8 {[%clk 0:00:05]} 50. Rd7 {[%clk 0:00:14]}  Bf6 {[%clk 0:00:05]} 51. Bd2 {[%clk 0:00:13]}  Ra6 {[%clk 0:00:04]} 52. Kf3 {[%clk 0:00:11]}  Rc6 {[%clk 0:00:05]} 53. Ke4 {[%clk 0:00:11]}  Kh5 {[%clk 0:00:04]} 54. Kf3 {[%clk 0:00:08]}  Kh6 {[%clk 0:00:04]} 55. Rb7 {[%clk 0:00:07]}  Re6 {[%clk 0:00:04]} 56. f5+ {[%clk 0:00:06]}  Kh5 {[%clk 0:00:02]} 57. Rh7# {[%clk 0:00:05]} 1-0


[Site "https://www.chess.com"]

[Event "Titled Tuesday Blitz March 22 Early 2022"]
[White "Ronka, Erik"]
[Black "Vishnu, Prasanna. V"]
[WhiteFideId "505080"]
[BlackFideId "5030692"]
[WhiteElo "2264"]
[BlackElo "2510"]
[Result "0-1"]
[Round "03"]
[TimeControl "180+1"]
[Date "2022.03.22"]
[WhiteClock "0:00:08"]
[BlackClock "0:00:54"]

1. e4 {[%clk 0:03:00]}  c5 {[%clk 0:02:59]} 2. Nf3 {[%clk 0:03:00]}  d6 {[%clk 0:03:00]} 3. d4 {[%clk 0:03:00]}  cxd4 {[%clk 0:03:00]} 4. Nxd4 {[%clk 0:03:01]}  Nf6 {[%clk 0:03:01]} 5. Nc3 {[%clk 0:03:02]}  a6 {[%clk 0:03:01]} 6. Nb3 {[%clk 0:03:02]}  Nbd7 {[%clk 0:03:00]} 7. a4 {[%clk 0:03:01]}  b6 {[%clk 0:03:00]} 8. g4 {[%clk 0:03:01]}  Bb7 {[%clk 0:03:00]} 9. Bg2 {[%clk 0:02:59]}  h6 {[%clk 0:03:00]} 10. Qe2 {[%clk 0:02:50]}  Rc8 {[%clk 0:02:59]} 11. f4 {[%clk 0:02:48]}  g5 {[%clk 0:02:50]} 12. fxg5 {[%clk 0:02:31]}  hxg5 {[%clk 0:02:51]} 13. Bxg5 {[%clk 0:02:31]}  Bg7 {[%clk 0:02:52]} 14. O-O-O {[%clk 0:02:21]}  Rxc3 {[%clk 0:02:50]} 15. bxc3 {[%clk 0:02:21]}  Qc7 {[%clk 0:02:50]} 16. Bd2 {[%clk 0:01:56]}  Ne5 {[%clk 0:02:41]} 17. g5 {[%clk 0:01:50]}  Nfd7 {[%clk 0:02:40]} 18. h4 {[%clk 0:01:15]}  Qc6 {[%clk 0:02:38]} 19. h5 {[%clk 0:01:06]}  Nc4 {[%clk 0:02:26]} 20. Kb1 {[%clk 0:00:47]}  Be5 {[%clk 0:01:54]} 21. Bf1 {[%clk 0:00:28]}  Na3+ {[%clk 0:01:51]} 22. Kb2 {[%clk 0:00:24]}  Nxc2 {[%clk 0:01:21]} 23. Kxc2 {[%clk 0:00:22]}  Qxa4 {[%clk 0:01:21]} 24. Ra1 {[%clk 0:00:13]}  Qc6 {[%clk 0:01:15]} 25. Bg2 {[%clk 0:00:12]}  a5 {[%clk 0:01:14]} 26. g6 {[%clk 0:00:12]}  a4 {[%clk 0:01:11]} 27. Nc1 {[%clk 0:00:12]}  b5 {[%clk 0:01:09]} 28. gxf7+ {[%clk 0:00:13]}  Kd8 {[%clk 0:01:10]} 29. Rf1 {[%clk 0:00:12]}  b4 {[%clk 0:01:10]} 30. Kd1 {[%clk 0:00:11]}  bxc3 {[%clk 0:01:09]} 31. Be3 {[%clk 0:00:11]}  Ba6 {[%clk 0:01:08]} 32. Qc2 {[%clk 0:00:10]}  Bb5 {[%clk 0:01:04]} 33. f8=Q+ {[%clk 0:00:08]}  Nxf8 {[%clk 0:01:03]} 34. Re1 {[%clk 0:00:08]}  Ne6 {[%clk 0:01:03]} 35. Bf1 {[%clk 0:00:09]}  Bxf1 {[%clk 0:00:58]} 36. Rxf1 {[%clk 0:00:10]}  Qb5 {[%clk 0:00:57]} 37. Rf2 {[%clk 0:00:09]}  Rxh5 {[%clk 0:00:56]} 38. Ne2 {[%clk 0:00:08]}  Rh1+ {[%clk 0:00:54]} 39. Ng1 {[%clk 0:00:08]}  Rxg1+ {[%clk 0:00:55]} 40. Rf1 {[%clk 0:00:08]}  Rxf1# {[%clk 0:00:54]} 0-1


[Site "https://www.chess.com"]

[Event "Titled Tuesday Blitz March 22 Early 2022"]
[White "Ruperez Benito, Antonio"]
[Black "Mikhnenko, Alexander"]
[WhiteFideId "22245049"]
[BlackFideId "34143014"]
[WhiteElo "2249"]
[BlackElo "2184"]
[Result "0-1"]
[Round "03"]
[TimeControl "180+1"]
[Date "2022.03.22"]
[WhiteClock "0:00:11"]
[BlackClock "0:00:12"]

1. e4 {[%clk 0:01:32]}  c5 {[%clk 0:02:58]} 2. Nf3 {[%clk 0:01:32]}  e6 {[%clk 0:02:57]} 3. d4 {[%clk 0:01:33]}  cxd4 {[%clk 0:02:57]} 4. Nxd4 {[%clk 0:01:34]}  Qb6 {[%clk 0:02:58]} 5. Nc3 {[%clk 0:01:34]}  Bc5 {[%clk 0:02:57]} 6. Nce2 {[%clk 0:01:27]}  e5 {[%clk 0:02:38]} 7. c3 {[%clk 0:01:03]}  exd4 {[%clk 0:02:35]} 8. cxd4 {[%clk 0:01:04]}  Bb4+ {[%clk 0:02:35]} 9. Nc3 {[%clk 0:01:02]}  Nf6 {[%clk 0:02:35]} 10. Bd3 {[%clk 0:00:58]}  Qxd4 {[%clk 0:02:28]} 11. O-O {[%clk 0:00:59]}  Bxc3 {[%clk 0:02:16]} 12. bxc3 {[%clk 0:01:00]}  Qxc3 {[%clk 0:02:17]} 13. Rb1 {[%clk 0:00:47]}  Qc7 {[%clk 0:02:07]} 14. e5 {[%clk 0:00:44]}  Nd5 {[%clk 0:02:00]} 15. Qg4 {[%clk 0:00:44]}  g6 {[%clk 0:01:40]} 16. Qf3 {[%clk 0:00:41]}  Ne7 {[%clk 0:01:14]} 17. Qf6 {[%clk 0:00:40]}  Rf8 {[%clk 0:01:11]} 18. Ba3 {[%clk 0:00:39]}  Nbc6 {[%clk 0:01:09]} 19. Rfe1 {[%clk 0:00:29]}  b6 {[%clk 0:01:03]} 20. Rbd1 {[%clk 0:00:27]}  Bb7 {[%clk 0:00:35]} 21. Bc4 {[%clk 0:00:26]}  a5 {[%clk 0:00:31]} 22. Qg7 {[%clk 0:00:23]}  Nb4 {[%clk 0:00:29]} 23. Bf1 {[%clk 0:00:20]}  Qd8 {[%clk 0:00:11]} 24. Qf6 {[%clk 0:00:18]}  Nf5 {[%clk 0:00:10]} 25. Bb5 {[%clk 0:00:15]}  Qxf6 {[%clk 0:00:08]} 26. exf6+ {[%clk 0:00:16]}  Kd8 {[%clk 0:00:08]} 27. Bb2 {[%clk 0:00:12]}  Bc6 {[%clk 0:00:07]} 28. Bxc6 {[%clk 0:00:11]}  Nxc6 {[%clk 0:00:08]} 29. Ba3 {[%clk 0:00:12]}  Re8 {[%clk 0:00:07]} 30. Rxe8+ {[%clk 0:00:11]}  Kxe8 {[%clk 0:00:08]} 31. Re1+ {[%clk 0:00:11]}  Kd8 {[%clk 0:00:09]} 32. g4 {[%clk 0:00:12]}  Nfd4 {[%clk 0:00:06]} 33. Kg2 {[%clk 0:00:11]}  Kc7 {[%clk 0:00:06]} 34. Be7 {[%clk 0:00:10]}  b5 {[%clk 0:00:06]} 35. g5 {[%clk 0:00:10]}  d6 {[%clk 0:00:07]} 36. Rd1 {[%clk 0:00:09]}  Kd7 {[%clk 0:00:08]} 37. f4 {[%clk 0:00:09]}  Nf5 {[%clk 0:00:08]} 38. Kf3 {[%clk 0:00:09]}  d5 {[%clk 0:00:08]} 39. Rxd5+ {[%clk 0:00:09]}  Kc7 {[%clk 0:00:09]} 40. Rc5 {[%clk 0:00:09]}  Rc8 {[%clk 0:00:09]} 41. h3 {[%clk 0:00:09]}  Kd7 {[%clk 0:00:08]} 42. Rd5+ {[%clk 0:00:08]}  Ke8 {[%clk 0:00:09]} 43. Rxb5 {[%clk 0:00:09]}  Ncd4+ {[%clk 0:00:09]} 44. Ke4 {[%clk 0:00:08]}  Nxb5 {[%clk 0:00:10]} 45. a4 {[%clk 0:00:07]}  Nxe7 {[%clk 0:00:10]} 46. axb5 {[%clk 0:00:07]}  Nc6 {[%clk 0:00:09]} 47. bxc6 {[%clk 0:00:07]}  Rxc6 {[%clk 0:00:10]} 48. Kd5 {[%clk 0:00:08]}  Rc8 {[%clk 0:00:11]} 49. f5 {[%clk 0:00:08]}  a4 {[%clk 0:00:11]} 50. fxg6 {[%clk 0:00:09]}  fxg6 {[%clk 0:00:11]} 51. h4 {[%clk 0:00:10]}  Kf7 {[%clk 0:00:12]} 52. Kd6 {[%clk 0:00:10]}  Rc1 {[%clk 0:00:11]} 53. Kd7 {[%clk 0:00:11]}  a3 {[%clk 0:00:11]} 54. h5 {[%clk 0:00:11]}  a2 {[%clk 0:00:12]} 55. hxg6+ {[%clk 0:00:12]}  hxg6 {[%clk 0:00:12]} 56. Kd6 {[%clk 0:00:10]}  a1=Q {[%clk 0:00:13]} 57. Kd5 {[%clk 0:00:11]}  Re1 {[%clk 0:00:12]} 58. Kc4 {[%clk 0:00:11]}  Qd1 {[%clk 0:00:12]} 0-1


[Site "https://www.chess.com"]

[Event "Titled Tuesday Blitz March 22 Early 2022"]
[White "Samarth, J Rao"]
[Black "Jaskolka, Tomasz"]
[WhiteFideId "46652370"]
[BlackFideId "1170791"]
[WhiteElo "1514"]
[BlackElo "2073"]
[Result "0-1"]
[Round "03"]
[TimeControl "180+1"]
[Date "2022.03.22"]
[WhiteClock "0:00:39"]
[BlackClock "0:00:47"]

1. d4 {[%clk 0:03:00]}  e6 {[%clk 0:02:55]} 2. c4 {[%clk 0:02:58]}  Nf6 {[%clk 0:02:55]} 3. Nf3 {[%clk 0:02:55]}  Bb4+ {[%clk 0:02:55]} 4. Bd2 {[%clk 0:02:55]}  c5 {[%clk 0:02:55]} 5. e3 {[%clk 0:02:53]}  O-O {[%clk 0:02:54]} 6. Nc3 {[%clk 0:02:53]}  d5 {[%clk 0:02:52]} 7. cxd5 {[%clk 0:02:51]}  exd5 {[%clk 0:02:51]} 8. Bd3 {[%clk 0:02:50]}  Nc6 {[%clk 0:02:50]} 9. O-O {[%clk 0:02:49]}  c4 {[%clk 0:02:50]} 10. Be2 {[%clk 0:02:48]}  Re8 {[%clk 0:02:48]} 11. Rc1 {[%clk 0:02:40]}  Bf5 {[%clk 0:02:43]} 12. Nb5 {[%clk 0:02:19]}  Bf8 {[%clk 0:02:36]} 13. Nc3 {[%clk 0:02:13]}  a6 {[%clk 0:02:22]} 14. b3 {[%clk 0:02:02]}  b5 {[%clk 0:02:21]} 15. bxc4 {[%clk 0:02:02]}  dxc4 {[%clk 0:02:20]} 16. Nh4 {[%clk 0:01:40]}  Bc8 {[%clk 0:02:10]} 17. Bf3 {[%clk 0:01:39]}  Bb7 {[%clk 0:02:10]} 18. g3 {[%clk 0:01:33]}  b4 {[%clk 0:01:57]} 19. Na4 {[%clk 0:01:27]}  c3 {[%clk 0:01:56]} 20. Bxc3 {[%clk 0:01:26]}  bxc3 {[%clk 0:01:55]} 21. Rxc3 {[%clk 0:01:27]}  Rc8 {[%clk 0:01:42]} 22. Rb3 {[%clk 0:01:05]}  Ba8 {[%clk 0:01:38]} 23. Nb6 {[%clk 0:01:04]}  Rc7 {[%clk 0:01:35]} 24. Nxa8 {[%clk 0:01:03]}  Qxa8 {[%clk 0:01:35]} 25. Rc3 {[%clk 0:01:01]}  Qc8 {[%clk 0:01:25]} 26. Qc1 {[%clk 0:00:57]}  g5 {[%clk 0:00:59]} 27. Ng2 {[%clk 0:00:54]}  Nxd4 {[%clk 0:00:56]} 28. exd4 {[%clk 0:00:43]}  Rxc3 {[%clk 0:00:55]} 29. Qxg5+ {[%clk 0:00:43]}  Bg7 {[%clk 0:00:54]} 30. Nf4 {[%clk 0:00:41]}  Rxf3 {[%clk 0:00:49]} 31. Nh5 {[%clk 0:00:39]}  Nxh5 {[%clk 0:00:47]} 0-1


[Site "https://www.chess.com"]

[Event "Titled Tuesday Blitz March 22 Early 2022"]
[White "Sammed Jaykumar, Shete"]
[Black "Perera Alfonso, Rene Humberto"]
[WhiteFideId "5073421"]
[BlackFideId "3514722"]
[WhiteElo "2253"]
[BlackElo "2313"]
[Result "0-1"]
[Round "03"]
[TimeControl "180+1"]
[Date "2022.03.22"]
[WhiteClock "0:00:01"]
[BlackClock "0:00:35"]

1. d4 {[%clk 0:03:00]}  d5 {[%clk 0:02:59]} 2. c4 {[%clk 0:02:59]}  c6 {[%clk 0:02:59]} 3. Nf3 {[%clk 0:02:59]}  Nf6 {[%clk 0:02:59]} 4. e3 {[%clk 0:02:59]}  Bg4 {[%clk 0:02:59]} 5. Nbd2 {[%clk 0:02:58]}  e6 {[%clk 0:02:59]} 6. Qc2 {[%clk 0:02:57]}  Nbd7 {[%clk 0:02:58]} 7. Bd3 {[%clk 0:02:56]}  Bd6 {[%clk 0:02:58]} 8. b3 {[%clk 0:02:53]}  O-O {[%clk 0:02:56]} 9. Bb2 {[%clk 0:02:52]}  a5 {[%clk 0:02:55]} 10. a3 {[%clk 0:02:52]}  Qe7 {[%clk 0:02:54]} 11. Ne5 {[%clk 0:02:42]}  Bh5 {[%clk 0:02:52]} 12. f4 {[%clk 0:02:38]}  Bg6 {[%clk 0:02:44]} 13. c5 {[%clk 0:02:30]}  Bxe5 {[%clk 0:02:28]} 14. fxe5 {[%clk 0:02:14]}  Ng4 {[%clk 0:02:28]} 15. Nf1 {[%clk 0:02:01]}  Qg5 {[%clk 0:02:21]} 16. O-O-O {[%clk 0:01:42]}  Nxe3 {[%clk 0:02:08]} 17. Nxe3 {[%clk 0:01:41]}  Qxe3+ {[%clk 0:02:08]} 18. Kb1 {[%clk 0:01:42]}  b6 {[%clk 0:02:01]} 19. Bxg6 {[%clk 0:01:27]}  fxg6 {[%clk 0:01:57]} 20. Rhe1 {[%clk 0:01:24]}  Qf2 {[%clk 0:01:54]} 21. Re2 {[%clk 0:01:22]}  Qf5 {[%clk 0:01:53]} 22. cxb6 {[%clk 0:01:20]}  Nxb6 {[%clk 0:01:53]} 23. Ka2 {[%clk 0:01:19]}  a4 {[%clk 0:01:51]} 24. bxa4 {[%clk 0:00:49]}  Nxa4 {[%clk 0:01:39]} 25. Qxc6 {[%clk 0:00:45]}  Rfc8 {[%clk 0:01:32]} 26. Qb5 {[%clk 0:00:40]}  Rc2 {[%clk 0:01:28]} 27. Rxc2 {[%clk 0:00:29]}  Qxc2 {[%clk 0:01:27]} 28. Qb3 {[%clk 0:00:29]}  Nc3+ {[%clk 0:01:22]} 29. Qxc3 {[%clk 0:00:29]}  Qxd1 {[%clk 0:01:22]} 30. Qc6 {[%clk 0:00:29]}  Rb8 {[%clk 0:01:22]} 31. Qxe6+ {[%clk 0:00:29]}  Kh8 {[%clk 0:01:22]} 32. Qh3 {[%clk 0:00:18]}  h6 {[%clk 0:01:04]} 33. Qc3 {[%clk 0:00:16]}  Qe2 {[%clk 0:01:03]} 34. a4 {[%clk 0:00:13]}  Qxg2 {[%clk 0:01:00]} 35. h3 {[%clk 0:00:12]}  g5 {[%clk 0:01:00]} 36. a5 {[%clk 0:00:10]}  g4 {[%clk 0:00:59]} 37. hxg4 {[%clk 0:00:09]}  Qxg4 {[%clk 0:00:59]} 38. Qc7 {[%clk 0:00:09]}  Rc8 {[%clk 0:00:57]} 39. Qb6 {[%clk 0:00:09]}  Qd1 {[%clk 0:00:54]} 40. Ka3 {[%clk 0:00:07]}  Qd3+ {[%clk 0:00:47]} 41. Ka2 {[%clk 0:00:07]}  Qc4+ {[%clk 0:00:45]} 42. Ka3 {[%clk 0:00:07]}  Rf8 {[%clk 0:00:43]} 43. Qb3 {[%clk 0:00:04]}  Qa6 {[%clk 0:00:42]} 44. Bc3 {[%clk 0:00:04]}  Rf3 {[%clk 0:00:42]} 45. Qb4 {[%clk 0:00:02]}  Qd3 {[%clk 0:00:40]} 46. Kb3 {[%clk 0:00:01]}  Qb1+ {[%clk 0:00:38]} 47. Ka4 {[%clk 0:00:01]}  Qc2+ {[%clk 0:00:35]} 48. Qb3 {[%clk 0:00:01]}  Rxc3 {[%clk 0:00:35]} 0-1


[Site "https://www.chess.com"]